fUST/lending_fUST_20240425
["ID","MTS","AMOUNT","RATE_DAILY","PERIOD"]
[323471897,1714029086347,-646.03,0.00021917,2]
[323471898,1714029086357,-1084.85,0.00021917,2]
[323471899,1714029086368,-584.17,0.00021917,2]
[323471900,1714029086377,-500.0,0.00021917,2]
[323471901,1714029086386,-762.04,0.00021917,2]
[323471902,1714029086396,-509.24,0.00021917,2]
[323471903,1714029086405,-1828.52,0.00021917,2]
[323471904,1714029086415,-525.09,0.00021917,2]
[323471905,1714029086424,-9714.64,0.00021917,2]
[323471906,1714029086433,-500.0,0.00021917,2]
[323471907,1714029086442,-1951.68,0.00021917,2]
[323471908,1714029086451,-1197.24,0.00021917,2]
[323471909,1714029086461,-639.36,0.00021917,2]
[323471910,1714029086470,-1048.02,0.00021917,2]
[323471911,1714029086479,-2000.98,0.00021917,2]
[323471912,1714029086489,-594.44,0.00021917,2]
[323471913,1714029086498,-1048.7,0.00021917,2]
[323471914,1714029086507,-1181.52,0.00021917,2]
[323471915,1714029086516,-1309.77,0.00021917,2]
[323471916,1714029086526,-678.72,0.00021917,2]
[323471917,1714029086535,-811.0,0.00021917,2]
[323471918,1714029086544,-10000.0,0.00021918,2]
[323471919,1714029086553,-278.36,0.00021918,2]
[323471920,1714029086562,-4098.85,0.00021918,2]
[323471921,1714029086572,-3415.71,0.00021918,2]
[323471922,1714029086582,-2846.42,0.00021918,2]
[323471923,1714029086591,-2372.02,0.00021918,2]
[323471924,1714029086601,-1976.68,0.00021918,2]
[323471925,1714029086610,-1647.24,0.00021918,2]
[323471926,1714029086619,-1647.24,0.00021918,2]
[323471927,1714029086628,-1098.16,0.00021918,2]
[323471928,1714029086637,-915.13,0.00021918,2]
[323471929,1714029086646,-762.61,0.00021918,2]
[323471930,1714029086655,-1000.0,0.0002195,2]
[323471931,1714029086665,-1000.0,0.0002195,2]
[323471932,1714029086674,-1000.0,0.0002195,2]
[323471933,1714029086683,-1000.0,0.0002195,2]
[323471934,1714029086692,-4239.500419,0.0002195,2]
[323471935,1714029086701,-1000.0,0.0002195,2]
[323471936,1714029086711,-1000.0,0.0002195,2]
[323471937,1714029086720,-2619.38836839,0.00022,3]
[323471938,1714029086729,-305.35148457,0.00022,2]
[323471939,1714029086738,-170.55092488,0.00022,2]
[323471940,1714029086748,-33599.97727851,0.00022,2]
[323471941,1714029086757,-638.06438949,0.00022,2]
[323471942,1714029086766,-20000.0,0.00022175,2]
[323471943,1714029086775,-818.02,0.00022191,2]
[323471944,1714029086784,-619.95,0.00022191,2]
[323471945,1714029086793,-568.07,0.00022191,2]
[323471946,1714029086802,-793.19,0.00022191,2]
[323471947,1714029086811,-616.43,0.00022191,2]
[323471948,1714029086820,-583.35,0.00022191,2]
[323471949,1714029086829,-363.77517185,0.00022191,2]
[323471950,1714029086839,-500.0,0.00022191,2]
[323471951,1714029086851,-500.0,0.00022191,2]
[323471952,1714029086860,-669.58,0.00022191,2]
[323471953,1714029086871,-709.97,0.00022191,2]
[323471954,1714029086881,-1057.71,0.00022191,2]
[323471955,1714029086890,-500.56,0.00022191,2]
[323471956,1714029086899,-633.35,0.00022191,2]
[323471957,1714029086908,-816.77,0.00022191,2]
[323471958,1714029086917,-1060.08,0.00022191,2]
[323471959,1714029086926,-890.42,0.00022191,2]
[323471960,1714029086936,-929.12,0.00022191,2]
[323471961,1714029086945,-630.9,0.00022191,2]
[323471962,1714029086954,-739.88,0.00022191,2]
[323471963,1714029086963,-592.11,0.00022191,2]
[323471964,1714029086972,-822.31,0.00022191,2]
[323471965,1714029086981,-739.2,0.00022191,2]
[323471966,1714029086990,-605.37,0.00022191,2]
[323471967,1714029086999,-558.24,0.00022191,2]
[323471968,1714029087011,-546.26,0.00022191,2]
[323471969,1714029087020,-1237.28,0.00022191,2]
[323471970,1714029087029,-1489.98,0.00022191,2]
[323471971,1714029087038,-958.76,0.00022191,2]
[323471972,1714029087047,-500.0,0.00022191,2]
[323471973,1714029087057,-1050.99,0.00022191,2]
[323471974,1714029087067,-685.4,0.00022191,2]
[323471975,1714029087076,-541.01,0.00022191,2]
[323471976,1714029087086,-500.0,0.00022191,2]
[323471977,1714029087095,-946.6,0.00022191,2]
[323471978,1714029087105,-1067.85,0.00022191,2]
[323471979,1714029087114,-1592.53,0.00022191,2]
[323471980,1714029087125,-1450.14,0.00022191,2]
[323471981,1714029087135,-500.0,0.00022191,2]
[323471982,1714029087144,-835.63,0.00022191,2]
[323471983,1714029087153,-770.33,0.00022191,2]
[323471984,1714029087162,-500.0,0.00022191,2]
[323471985,1714029087171,-2942.75,0.00022191,2]
[323471986,1714029087181,-769.52,0.00022191,2]
[323471987,1714029087190,-1283.68,0.00022191,2]
[323471988,1714029087199,-536.62,0.00022191,2]
[323471989,1714029087208,-575.83,0.00022191,2]
[323471990,1714029087217,-3973.6,0.00022191,2]
[323471991,1714029087226,-2242.97,0.00022191,2]
[323471992,1714029087235,-3243.05,0.00022191,2]
[323471993,1714029087244,-508.57,0.00022191,2]
[323471994,1714029087254,-631.78,0.00022191,2]
[323471995,1714029087263,-1375.26,0.00022191,2]
[323471996,1714029087272,-1387.72,0.00022191,2]
[323471997,1714029087387,-1846.12,0.00022191,2]
[323471998,1714029087397,-800.02,0.00022191,2]
[323471999,1714029087406,-646.8,0.00022191,2]
[323472000,1714029087415,-2358.88,0.00022191,2]
[323472001,1714029087425,-1011.49,0.00022191,2]
[323472002,1714029087435,-2667.62,0.00022191,2]
[323472003,1714029087444,-339.14828619,0.00022191,2]
[323472004,1714029087454,-1174.54,0.00022191,2]
[323472005,1714029087463,-723.31,0.00022191,2]
[323472006,1714029087472,-592.52,0.00022191,2]
[323472007,1714029087482,-557.02,0.00022191,2]
[323472008,1714029087491,-696.57,0.00022191,2]
[323472009,1714029087500,-646.03,0.00022191,2]
[323472010,1714029087509,-1084.85,0.00022191,2]
[323472011,1714029087518,-584.17,0.00022191,2]
[323472012,1714029087528,-500.0,0.00022191,2]
[323472013,1714029087538,-762.04,0.00022191,2]
[323472014,1714029087547,-509.24,0.00022191,2]
[323472015,1714029087557,-1828.52,0.00022191,2]
[323472016,1714029087566,-525.09,0.00022191,2]
[323472017,1714029087576,-9714.64,0.00022191,2]
[323472018,1714029087586,-577.28106759,0.00022191,2]
[323472019,1714029087595,-1951.68,0.00022191,2]
[323472020,1714029087605,-1197.24,0.00022191,2]
[323472021,1714029087614,-639.36,0.00022191,2]
[323472022,1714029087626,-1048.02,0.00022191,2]
[323472023,1714029087636,-2000.98,0.00022191,2]
[323472024,1714029087645,-594.44,0.00022191,2]
[323472025,1714029087654,-1048.7,0.00022191,2]
[323472026,1714029087663,-1181.52,0.00022191,2]
[323472027,1714029087672,-1309.77,0.00022191,2]
[323472028,1714029087682,-678.72,0.00022191,2]
[323472029,1714029087691,-811.0,0.00022191,2]
[323472030,1714029087701,-620.0,0.00022296,2]
[323472031,1714029087710,-818.02,0.00022465,2]
[323472032,1714029087719,-619.95,0.00022465,2]
[323472033,1714029087728,-568.07,0.00022465,2]
[323472034,1714029087737,-793.19,0.00022465,2]
[323472035,1714029087746,-616.43,0.00022465,2]
[323472036,1714029087755,-583.35,0.00022465,2]
[323472037,1714029087765,-500.0,0.00022465,2]
[323472038,1714029087774,-331.73262744,0.00022465,2]
[323472039,1714029087783,-669.58,0.00022465,2]
[323472040,1714029087792,-709.97,0.00022465,2]
[323472041,1714029087801,-1057.71,0.00022465,2]
[323472042,1714029087811,-500.56,0.00022465,2]
[323472043,1714029087821,-633.35,0.00022465,2]
[323472044,1714029087830,-816.77,0.00022465,2]
[323472045,1714029087839,-1060.08,0.00022465,2]
[323472046,1714029087850,-890.42,0.00022465,2]
[323472047,1714029087859,-929.12,0.00022465,2]
[323472048,1714029087870,-630.9,0.00022465,2]
[323472049,1714029087880,-739.88,0.00022465,2]
[323472050,1714029087889,-592.11,0.00022465,2]
[323472051,1714029087898,-822.31,0.00022465,2]
[323472052,1714029087908,-739.2,0.00022465,2]
[323472053,1714029087918,-605.37,0.00022465,2]
[323472054,1714029087928,-558.24,0.00022465,2]
[323472055,1714029087937,-546.26,0.00022465,2]
[323472056,1714029087946,-1237.28,0.00022465,2]
[323472057,1714029087956,-1489.98,0.00022465,2]
[323472058,1714029087965,-958.76,0.00022465,2]
[323472059,1714029087975,-500.0,0.00022465,2]
[323472060,1714029087986,-1050.99,0.00022465,2]
[323472061,1714029087996,-685.4,0.00022465,2]
[323472062,1714029088007,-541.01,0.00022465,2]
[323472063,1714029088018,-539.39767972,0.00022465,2]
[323472064,1714029088028,-946.6,0.00022465,2]
[323472065,1714029088038,-1067.85,0.00022465,2]
[323472066,1714029088047,-1592.53,0.00022465,2]
[323472067,1714029088057,-1450.14,0.00022465,2]
[323472068,1714029088066,-500.0,0.00022465,2]
[323472069,1714029088076,-835.63,0.00022465,2]
[323472070,1714029088086,-770.33,0.00022465,2]
[323472071,1714029088096,-500.0,0.00022465,2]
[323472072,1714029088106,-2942.75,0.00022465,2]
[323472073,1714029088115,-769.52,0.00022465,2]
[323472074,1714029088125,-1283.68,0.00022465,2]
[323472075,1714029088134,-536.62,0.00022465,2]
[323472076,1714029088144,-575.83,0.00022465,2]
[323472077,1714029088154,-3973.6,0.00022465,2]
[323472078,1714029088189,-2242.97,0.00022465,2]
[323472079,1714029088198,-3243.05,0.00022465,2]
[323472080,1714029088207,-508.57,0.00022465,2]
[323472081,1714029088217,-631.78,0.00022465,2]
[323472082,1714029088226,-1375.26,0.00022465,2]
[323472083,1714029088236,-1387.72,0.00022465,2]
[323472084,1714029088245,-1846.12,0.00022465,2]
[323472085,1714029088254,-800.02,0.00022465,2]
[323472086,1714029088263,-646.8,0.00022465,2]
[323472087,1714029088272,-2358.88,0.00022465,2]
[323472088,1714029088281,-1011.49,0.00022465,2]
[323472089,1714029088290,-2667.62,0.00022465,2]
[323472090,1714029088300,-1174.54,0.00022465,2]
[323472091,1714029088310,-723.31,0.00022465,2]
[323472092,1714029088319,-592.52,0.00022465,2]
[323472093,1714029088329,-557.02,0.00022465,2]
[323472094,1714029088338,-696.57,0.00022465,2]
[323472095,1714029088347,-646.03,0.00022465,2]
[323472096,1714029088356,-1084.85,0.00022465,2]
[323472097,1714029088365,-584.17,0.00022465,2]
[323472098,1714029088376,-536.12933284,0.00022465,2]
[323472099,1714029088386,-762.04,0.00022465,2]
[323472100,1714029088395,-509.24,0.00022465,2]
[323472101,1714029088403,-1828.52,0.00022465,2]
[323472102,1714029088413,-525.09,0.00022465,2]
[323472103,1714029088422,-9714.64,0.00022465,2]
[323472104,1714029088432,-1951.68,0.00022465,2]
[323472105,1714029088441,-1197.24,0.00022465,2]
[323472106,1714029088451,-639.36,0.00022465,2]
[323472107,1714029088461,-1048.02,0.00022465,2]
[323472108,1714029088470,-2000.98,0.00022465,2]
[323472109,1714029088480,-594.44,0.00022465,2]
[323472110,1714029088489,-1048.7,0.00022465,2]
[323472111,1714029088499,-1181.52,0.00022465,2]
[323472112,1714029088508,-1309.77,0.00022465,2]
[323472113,1714029088517,-678.72,0.00022465,2]
[323472114,1714029088526,-552.0,0.00022578,2]
[323472115,1714029088535,-818.15081953,0.00022739,2]
[323472116,1714029088544,-620.18204184,0.00022739,2]
[323472117,1714029088553,-568.10295622,0.00022739,2]
[323472118,1714029088562,-793.2199281,0.00022739,2]
[323472119,1714029088572,-616.61023131,0.00022739,2]
[323472120,1714029088581,-583.38260245,0.00022739,2]
[323472121,1714029088592,-241.89639685,0.00022739,2]
[323472122,1714029088602,-669.60860574,0.00022739,2]
[323472123,1714029088613,-710.10089876,0.00022739,2]
[323472124,1714029088625,-1057.75859573,0.00022739,2]
[323472125,1714029088635,-500.63169452,0.00022739,2]
[323472126,1714029088646,-633.37635763,0.00022739,2]
[323472127,1714029088655,-816.98789614,0.00022739,2]
[323472128,1714029088665,-1060.30545682,0.00022739,2]
[323472129,1714029088674,-890.61568905,0.00022739,2]
[323472130,1714029088683,-929.19097691,0.00022739,2]
[323472131,1714029088692,-631.07141454,0.00022739,2]
[323472132,1714029088701,-740.05864243,0.00022739,2]
[323472133,1714029088710,-592.30865804,0.00022739,2]
[323472134,1714029088719,-822.34916993,0.00022739,2]
[323472135,1714029088728,-739.40542699,0.00022739,2]
[323472136,1714029088737,-605.50370476,0.00022739,2]
[323472137,1714029088745,-558.37192922,0.00022739,2]
[323472138,1714029088754,-546.36691568,0.00022739,2]
[323472139,1714029088763,-1237.30386745,0.00022739,2]
[323472140,1714029088772,-1490.13325338,0.00022739,2]
[323472141,1714029088781,-958.99939816,0.00022739,2]
[323472142,1714029088789,-274.73102172,0.00022739,2]
[323472143,1714029088798,-1051.15493404,0.00022739,2]
[323472144,1714029088806,-685.52879848,0.00022739,2]
[323472145,1714029088815,-541.09206986,0.00022739,2]
[323472146,1714029088824,-946.77295833,0.00022739,2]
[323472147,1714029088832,-1068.06256485,0.00022739,2]
[323472148,1714029088841,-1592.57,0.00022739,2]
[323472149,1714029088850,-1450.18167637,0.00022739,2]
[323472150,1714029088858,-360.3783541,0.00022739,2]
[323472151,1714029088867,-835.85302425,0.00022739,2]
[323472152,1714029088875,-770.33871323,0.00022739,2]
[323472153,1714029088884,-487.30816429,0.00022739,2]
[323472154,1714029088893,-2942.79737049,0.00022739,2]
[323472155,1714029088902,-769.685125,0.00022739,2]
[323472156,1714029088910,-1283.81,0.00022739,2]
[323472157,1714029088919,-536.81647454,0.00022739,2]
[323472158,1714029088928,-575.8835244,0.00022739,2]
[323472159,1714029088938,-3973.75203501,0.00022739,2]
[323472160,1714029088946,-2243.16467648,0.00022739,2]
[323472161,1714029088955,-3243.18,0.00022739,2]
[323472162,1714029088965,-508.68770367,0.00022739,2]
[323472163,1714029088976,-631.94835307,0.00022739,2]
[323472164,1714029088985,-1375.36,0.00022739,2]
[323472165,1714029088994,-1387.77,0.00022739,2]
[323472166,1714029089003,-1846.27596326,0.00022739,2]
[323472167,1714029089016,-800.18049647,0.00022739,2]
[323472168,1714029089025,-646.91305359,0.00022739,2]
[323472169,1714029089035,-2358.88722696,0.00022739,2]
[323472170,1714029089044,-1011.56611696,0.00022739,2]
[323472171,1714029089054,-2667.72973798,0.00022739,2]
[323472172,1714029089065,-1174.76322363,0.00022739,2]
[323472173,1714029089075,-723.53188192,0.00022739,2]
[323472174,1714029089086,-592.53140351,0.00022739,2]
[323472175,1714029089097,-557.04913535,0.00022739,2]
[323472176,1714029089106,-696.70652242,0.00022739,2]
[323472177,1714029089116,-646.08772708,0.00022739,2]
[323472178,1714029089127,-1084.89613419,0.00022739,2]
[323472179,1714029089136,-584.38,0.00022739,2]
[323472180,1714029089146,-762.17416337,0.00022739,2]
[323472181,1714029089157,-509.43088356,0.00022739,2]
[323472182,1714029089166,-1828.67947864,0.00022739,2]
[323472183,1714029089175,-525.20858058,0.00022739,2]
[323472184,1714029089185,-9714.783113,0.00022739,2]
[323472185,1714029089195,-1951.7191624,0.00022739,2]
[323472186,1714029089205,-1197.44260706,0.00022739,2]
[323472187,1714029089216,-639.58686596,0.00022739,2]
[323472188,1714029089227,-1048.17665754,0.00022739,2]
[323472189,1714029089237,-2000.9889514,0.00022739,2]
[323472190,1714029089247,-594.65765965,0.00022739,2]
[323472191,1714029089258,-1048.75791903,0.00022739,2]
[323472192,1714029089268,-1181.58156703,0.00022739,2]
[323472193,1714029089279,-1309.81,0.00022739,2]
[323472194,1714029089290,-678.8758393,0.00022739,2]
[323472195,1714029089299,-1004.47,0.000228,6]
[323472196,1714029089309,-1643.7061248,0.00023,2]
[323472197,1714029089420,-491.0,0.00023,2]
[323472198,1714029089430,-113923.37220243,0.00023,2]
[323472199,1714029089440,-491.0,0.00023,2]
[323472200,1714029089451,-446.0,0.00023,2]
[323472201,1714029089461,-1613.0,0.00023079,2]
[323472202,1714029089471,-446.0,0.00023374,2]
[323472203,1714029089481,-620.0,0.0002341,2]
[323472204,1714029089491,-446.0,0.00023648,2]
[323472205,1714029089501,-5600.0,0.000239,9]
[323472206,1714029089512,-446.0,0.00023922,2]
[323472207,1714029089523,-162305.02192926,0.00024,2]
[323472208,1714029089534,-5005.3153202,0.00024,2]
[323472209,1714029089543,-500.0,0.00024,2]
[323472210,1714029089553,-2674.23412113,0.00024,2]
[323472211,1714029089565,-10000.0,0.00024,2]
[323472212,1714029089575,-16064.19687165,0.00024,2]
[323472213,1714029089586,-1607.53688818,0.00024,2]
[323472214,1714029089596,-150.5,0.0002408,7]
[323472215,1714029089606,-169.0,0.00024166,35]
[323472216,1714029089616,-169.0,0.00024176,35]
[323472217,1714029089628,-169.0,0.00024186,35]
[323472218,1714029089639,-446.0,0.00024196,2]
[323472219,1714029089648,-446.0,0.00024255,2]
[323472220,1714029089657,-5000.0,0.000245,2]
[323472221,1714029089666,-152.0,0.000245,2]
[323472222,1714029089676,-620.0,0.00024581,2]
[323472223,1714029089686,-198.64685784,0.00024652,5]
[323472224,1714029089696,-508.13,0.00024657,2]
[323472225,1714029089707,-500.0,0.00024657,2]
[323472226,1714029089717,-500.0,0.00024658,2]
[323472227,1714029089727,-11362.4131153,0.00024658,10]
[323472228,1714029089738,-200.0,0.00024658,2]
[323472229,1714029089749,-200.0,0.00024658,15]
[323472230,1714029089760,-380.0,0.00024658,2]
[323472231,1714029089770,-508.13,0.00024712,2]
[323472232,1714029089780,-508.13,0.00024767,2]
[323472233,1714029089789,-508.13,0.00024821,2]
[323472234,1714029089799,-508.13,0.00024876,2]
[323472235,1714029089810,-11000.0,0.00024899,2]
[323472236,1714029089821,-40262.0,0.000249,7]
[323472237,1714029089831,-11044.66689528,0.000249,2]
[323472238,1714029089842,-150.5,0.00024911,7]
[323472239,1714029089852,-150.5,0.00024921,7]
[323472240,1714029089863,-508.13,0.00024931,2]
[323472241,1714029089873,-508.13,0.00024986,2]
[323472242,1714029089884,-301.36887217,0.00025,2]
[323472243,1714029089893,-157.27673588,0.00025,2]
[323472244,1714029089904,-3500.0,0.00025,7]
[323472245,1714029089916,-2658.0,0.00025,2]
[323472246,1714029089926,-250.1017223,0.00025,2]
[323472247,1714029089937,-359.54662959,0.00025,2]
[323472248,1714029089946,-300.0,0.00025,2]
[323472249,1714029089956,-300.0,0.00025,2]
[323472250,1714029089966,-300.0,0.00025,2]
[323472251,1714029089977,-300.0,0.00025,2]
[323472252,1714029089987,-300.0,0.00025,2]
[323472253,1714029089996,-300.0,0.00025,2]
[323472254,1714029090010,-300.0,0.00025,2]
[323472255,1714029090020,-300.0,0.00025,2]
[323472256,1714029090029,-300.0,0.00025,2]
[323472257,1714029090039,-300.0,0.00025,2]
[323472258,1714029090049,-300.0,0.00025,2]
[323472259,1714029090058,-300.0,0.00025,2]
[323472260,1714029090067,-66377.0,0.00025,2]
[323472261,1714029090077,-300.0,0.00025,2]
[323472262,1714029090089,-300.0,0.00025,2]
[323472263,1714029090098,-2465.0,0.00025,5]
[323472264,1714029090109,-2000.0,0.00025,3]
[323472265,1714029090119,-2000.0,0.00025,3]
[323472266,1714029090129,-300.0,0.00025,2]
[323472267,1714029090139,-300.0,0.00025,2]
[323472268,1714029090148,-300.0,0.00025,2]
[323472269,1714029090158,-300.0,0.00025,2]
[323472270,1714029090168,-5001.19462903,0.00025,2]
[323472271,1714029090178,-5000.0,0.00025,2]
[323472272,1714029090189,-5000.0,0.00025,2]
[323472273,1714029090200,-5000.0,0.00025,2]
[323472274,1714029090210,-2047.54913963,0.00025,5]
[323472275,1714029090221,-300.0,0.00025,2]
[323472276,1714029090231,-402.2,0.00025,2]
[323472277,1714029090242,-402.199999,0.00025,2]
[323472278,1714029090252,-402.2,0.00025,2]
[323472279,1714029090263,-221.15451582,0.00025,3]
[323472280,1714029090273,-300.0,0.00025,2]
[323472281,1714029090282,-300.0,0.00025,2]
[323472282,1714029090291,-508.13,0.00025041,2]
[323472283,1714029090301,-508.13,0.00025095,2]
[323472284,1714029090310,-186.88972342,0.000251,2]
[323472285,1714029090319,-508.13,0.0002515,2]
[323472286,1714029090328,-508.13,0.00025205,2]
[323472287,1714029090337,-508.13,0.0002526,2]
[323472288,1714029090347,-1064.10862296,0.00025265,2]
[323472289,1714029090356,-508.13,0.00025315,2]
[323472290,1714029090365,-508.13,0.00025369,2]
[323472291,1714029090375,-2258.0,0.00025386,2]
[323472292,1714029090385,-508.13,0.00025424,2]
[323472293,1714029090394,-446.0,0.00025468,2]
[323472294,1714029090403,-461.0,0.00025468,2]
[323472295,1714029090414,-508.13,0.00025479,2]
[323472296,1714029090423,-167.54782652,0.00025512,2]
[323472297,1714029090433,-508.13,0.00025534,2]
[323472298,1714029090442,-508.13,0.00025589,2]
[323472299,1714029090451,-740.69282795,0.000256,2]
[323472300,1714029090460,-1000.719805,0.000256,2]
[323472301,1714029090469,-508.13,0.00025643,2]
[323472302,1714029090479,-508.13,0.00025698,2]
[323472303,1714029090488,-508.13,0.00025753,2]
[323472304,1714029090497,-209.53956846,0.00025786,3]
[323472305,1714029090506,-508.13,0.00025808,2]
[323472306,1714029090515,-508.13,0.00025863,2]
[323472307,1714029090524,-508.23507308,0.00025917,2]
[323472308,1714029090534,-692.71514922,0.00026,2]
[323472309,1714029090543,-154.84515385,0.00026,2]
[323472310,1714029090552,-587.0,0.00026,2]
[323472311,1714029090561,-1000.0,0.000261,2]
[323472312,1714029090570,-1000.0,0.000263,2]
[323472313,1714029090579,-1000.0,0.000263,2]
[323472314,1714029090588,-1000.0,0.000263,2]
[323472315,1714029090597,-1000.0,0.000263,2]
[323472316,1714029090607,-1000.0,0.000263,2]
[323472317,1714029090617,-25241.38684389,0.000263,2]
[323472318,1714029090627,-353.1785027,0.00026314,2]
[323472319,1714029090637,-353.1785027,0.00026387,2]
[323472320,1714029090647,-353.1785027,0.00026391,2]
[323472321,1714029090657,-2410.35017624,0.00026395,2]
[323472322,1714029090666,-192.49960249,0.00026395,2]
[323472323,1714029090675,-2410.35017624,0.00026411,2]
[323472324,1714029090683,-180.02567509,0.00026419,2]
[323472325,1714029090692,-2410.35017624,0.00026448,2]
[323472326,1714029090701,-2410.35017624,0.00026465,2]
[323472327,1714029090711,-1739.09950523,0.00026471,2]
[323472328,1714029090720,-180.02567509,0.00026475,2]
[323472329,1714029090729,-446.0,0.00026486,2]
[323472330,1714029090739,-353.1785027,0.00026585,2]
[323472331,1714029090748,-676.63055938,0.000266,2]
[323472332,1714029090758,-1000.0,0.000266,2]
[323472333,1714029090766,-786.94300056,0.00026666,9]
[323472334,1714029090775,-446.0,0.00026681,2]
[323472335,1714029090784,-2410.35017624,0.00026759,2]
[323472336,1714029090793,-2410.35017624,0.00026776,2]
[323472337,1714029090804,-159.098836,0.00026788,2]
[323472338,1714029090813,-2410.35017624,0.00026822,2]
[323472339,1714029090823,-1739.09950523,0.00026836,2]
[323472340,1714029090834,-151.0,0.00026863,2]
[323472341,1714029090843,-353.1785027,0.00026875,2]
[323472342,1714029090853,-265.47387186,0.00026886,2]
[323472343,1714029090862,-192.49960249,0.00026921,2]
[323472344,1714029090872,-192.49960249,0.00026951,2]
[323472345,1714029090881,-332.41265901,0.00027,20]
[323472346,1714029090890,-199999.999999,0.00027,15]
[323472347,1714029090899,-8519.0605649,0.00027,2]
[323472348,1714029090907,-1739.09950523,0.00027002,2]
[323472349,1714029090916,-353.1785027,0.00027007,2]
[323472350,1714029090925,-1739.09950523,0.00027007,2]
[323472351,1714029090935,-2410.35017624,0.00027032,2]
[323472352,1714029090944,-353.1785027,0.00027066,2]
[323472353,1714029090952,-158.02864404,0.00027067,2]
[323472354,1714029090961,-192.49960249,0.00027068,2]
[323472355,1714029090971,-1739.09950523,0.00027076,2]
[323472356,1714029090982,-224.03345044,0.00027088,2]
[323472357,1714029090992,-1000.0,0.000271,2]
[323472358,1714029091003,-180.02567509,0.00027101,2]
[323472359,1714029091015,-353.1785027,0.00027104,2]
[323472360,1714029091024,-1739.09950523,0.00027128,2]
[323472361,1714029091033,-192.49960249,0.00027165,2]
[323472362,1714029091044,-2410.35017624,0.00027209,2]
[323472363,1714029091055,-265.47387186,0.00027217,2]
[323472364,1714029091065,-353.1785027,0.00027229,2]
[323472365,1714029091074,-160.549889,0.00027236,2]
[323472366,1714029091083,-180.02567509,0.00027239,2]
[323472367,1714029091094,-1739.09950523,0.0002724,2]
[323472368,1714029091104,-180.02567509,0.00027245,2]
[323472369,1714029091113,-353.1785027,0.00027247,2]
[323472370,1714029091122,-180.02567509,0.00027274,2]
[323472371,1714029091132,-1739.09950523,0.0002731,2]
[323472372,1714029091141,-265.47387186,0.00027318,2]
[323472373,1714029091152,-1739.09950523,0.00027341,2]
[323472374,1714029091161,-353.1785027,0.00027378,2]
[323472375,1714029091170,-353.1785027,0.00027379,2]
[323472376,1714029091180,-353.1785027,0.00027385,2]
[323472377,1714029091189,-200.0,0.00027397,2]
[323472378,1714029091198,-200.0,0.00027397,2]
[323472379,1714029091208,-200.0,0.00027397,2]
[323472380,1714029091217,-162.08796362,0.00027397,2]
[323472381,1714029091327,-500.0,0.00027397,14]
[323472382,1714029091337,-500.0,0.00027397,14]
[323472383,1714029091347,-500.0,0.00027397,14]
[323472384,1714029091358,-500.0,0.00027397,14]
[323472385,1714029091367,-517.43356837,0.00027397,14]
[323472386,1714029091378,-192.49960249,0.00027397,2]
[323472387,1714029091387,-500.0,0.00027397,2]
[323472388,1714029091397,-500.0,0.00027397,2]
[323472389,1714029091406,-500.0,0.00027397,2]
[323472390,1714029091416,-500.0,0.00027397,2]
[323472391,1714029091426,-216.38176887,0.00027397,2]
[323472392,1714029091435,-500.0,0.00027397,2]
[323472393,1714029091444,-500.0,0.00027397,2]
[323472394,1714029091453,-500.0,0.00027397,2]
[323472395,1714029091463,-500.0,0.00027397,2]
[323472396,1714029091472,-500.0,0.00027397,2]